fUSD/lending_fUSD_20240519
["ID","MTS","AMOUNT","RATE_DAILY","PERIOD"]
[327495845,1716125476675,-500.0,0.00027191,2]
[327495846,1716125476684,-500.0,0.00027191,2]
[327495847,1716125476693,-187.04762175,0.00027191,2]
[327495848,1716125476703,-470.294547,0.00027191,2]
[327495849,1716125476713,-815.2,0.00027191,2]
[327495850,1716125476722,-615.48,0.00027191,2]
[327495851,1716125476731,-500.0,0.00027191,2]
[327495852,1716125476741,-500.0,0.00027191,2]
[327495853,1716125476751,-500.0,0.00027191,2]
[327495854,1716125476760,-226.5,0.00027191,2]
[327495855,1716125476770,-725.95,0.00027191,2]
[327495856,1716125476780,-500.0,0.00027191,2]
[327495857,1716125476790,-631.33876755,0.00027191,2]
[327495858,1716125476799,-500.0,0.00027191,2]
[327495859,1716125476810,-150.0,0.00027191,2]
[327495860,1716125476819,-500.0,0.00027191,2]
[327495861,1716125476828,-988.92,0.00027191,2]
[327495862,1716125476839,-500.0,0.00027191,2]
[327495863,1716125476848,-780.74,0.00027191,2]
[327495864,1716125476857,-500.0,0.00027191,2]
[327495865,1716125476867,-500.0,0.00027191,2]
[327495866,1716125476878,-500.0,0.00027191,2]
[327495867,1716125476887,-500.0,0.00027191,2]
[327495868,1716125476898,-500.0,0.00027191,2]
[327495869,1716125476908,-500.0,0.00027191,2]
[327495870,1716125476917,-619.66,0.00027191,2]
[327495871,1716125476926,-500.0,0.00027191,2]
[327495872,1716125476936,-500.0,0.00027191,2]
[327495873,1716125476945,-500.0,0.00027191,2]
[327495874,1716125476955,-846.91,0.00027191,2]
[327495875,1716125476964,-329.06323718,0.00027191,2]
[327495876,1716125476974,-982.33,0.00027191,2]
[327495877,1716125476983,-500.0,0.00027191,2]
[327495878,1716125476993,-1644.32,0.00027191,2]
[327495879,1716125477003,-1782.9,0.00027191,2]
[327495880,1716125477013,-500.0,0.00027191,2]
[327495881,1716125477022,-700.7,0.00027191,2]
[327495882,1716125477032,-1923.11,0.00027191,2]
[327495883,1716125477041,-1095.98,0.00027191,2]
[327495884,1716125477052,-1383.57,0.00027191,2]
[327495885,1716125477062,-1151.71,0.00027191,2]
[327495886,1716125477071,-500.0,0.00027191,2]
[327495887,1716125477080,-1219.6,0.00027191,2]
[327495888,1716125477089,-848.32,0.00027191,2]
[327495889,1716125477099,-500.0,0.00027191,2]
[327495890,1716125477109,-777.11,0.00027191,2]
[327495891,1716125477119,-500.0,0.00027191,2]
[327495892,1716125477128,-1055.0,0.00027191,2]
[327495893,1716125477138,-512.59,0.00027191,2]
[327495894,1716125477147,-500.0,0.00027191,2]
[327495895,1716125477157,-541.07,0.00027191,2]
[327495896,1716125477171,-828.51,0.00027191,2]
[327495897,1716125477180,-500.0,0.00027191,2]
[327495898,1716125477190,-989.78,0.00027191,2]
[327495899,1716125477200,-500.0,0.00027191,2]
[327495900,1716125477211,-500.0,0.00027191,2]
[327495901,1716125477220,-500.0,0.00027191,2]
[327495902,1716125477231,-1162.85,0.00027191,2]
[327495903,1716125477240,-540.7,0.00027191,2]
[327495904,1716125477251,-500.0,0.00027191,2]
[327495905,1716125477261,-500.0,0.00027191,2]
[327495906,1716125477271,-3682.75,0.00027191,2]
[327495907,1716125477280,-500.0,0.00027191,2]
[327495908,1716125477290,-1892.05,0.00027191,2]
[327495909,1716125477300,-500.0,0.00027191,2]
[327495910,1716125477310,-1015.08,0.00027191,2]
[327495911,1716125477320,-878.61,0.00027191,2]
[327495912,1716125477329,-354.38054405,0.00027191,2]
[327495913,1716125477339,-871.12,0.00027191,2]
[327495914,1716125477350,-500.0,0.00027191,2]
[327495915,1716125477359,-1467.74,0.00027191,2]
[327495916,1716125477369,-500.0,0.00027191,2]
[327495917,1716125477379,-1893.57,0.00027191,2]
[327495918,1716125477388,-533.14,0.00027191,2]
[327495919,1716125477398,-500.0,0.00027191,2]
[327495920,1716125477408,-500.0,0.00027191,2]
[327495921,1716125477418,-656.36,0.00027191,2]
[327495922,1716125477427,-615.22,0.00027191,2]
[327495923,1716125477437,-810.74,0.00027191,2]
[327495924,1716125477446,-997.13,0.00027191,2]
[327495925,1716125477456,-837.85,0.00027191,2]
[327495926,1716125477466,-674.79,0.00027191,2]
[327495927,1716125477476,-2150.8,0.00027191,2]
[327495928,1716125477486,-500.0,0.00027191,2]
[327495929,1716125477496,-827.03,0.00027191,2]
[327495930,1716125477506,-2747.6,0.00027191,2]
[327495931,1716125477515,-1069.79,0.00027191,2]
[327495932,1716125477525,-4457.98,0.00027191,2]
[327495933,1716125477535,-925.95,0.00027191,2]
[327495934,1716125477544,-500.0,0.00027191,2]
[327495935,1716125477555,-896.89,0.00027191,2]
[327495936,1716125477565,-997.04,0.00027191,2]
[327495937,1716125477575,-6546.3,0.00027191,2]
[327495938,1716125477585,-500.0,0.00027191,2]
[327495939,1716125477595,-744.57,0.00027191,2]
[327495940,1716125477717,-1036.81,0.00027191,2]
[327495941,1716125477728,-500.0,0.00027191,2]
[327495942,1716125477738,-500.0,0.00027191,2]
[327495943,1716125477747,-500.0,0.00027191,2]
[327495944,1716125477756,-2745.43,0.00027191,2]
[327495945,1716125477765,-468.73293966,0.00027191,2]
[327495946,1716125477775,-500.0,0.00027191,2]
[327495947,1716125477784,-1015.07,0.00027191,2]
[327495948,1716125477794,-521.3,0.00027191,2]
[327495949,1716125477804,-157.20601716,0.000273,2]
[327495950,1716125477813,-157.20601715,0.000273,2]
[327495951,1716125477823,-157.20601715,0.000273,2]
[327495952,1716125477833,-157.20601715,0.000273,2]
[327495953,1716125477843,-157.20601715,0.000273,2]
[327495954,1716125477852,-17815.44131664,0.00027307,2]
[327495955,1716125477861,-1059.36517779,0.00027315,2]
[327495956,1716125477870,-156.99,0.00027318,120]
[327495957,1716125477880,-206.0,0.0002732,2]
[327495958,1716125477890,-219.0,0.0002732,2]
[327495959,1716125477901,-839.6,0.00027365,2]
[327495960,1716125477912,-163.42,0.00027365,2]
[327495961,1716125477922,-163.42,0.00027365,2]
[327495962,1716125477932,-163.42,0.00027365,2]
[327495963,1716125477942,-1805.728918,0.00027381,2]
[327495964,1716125477951,-186.378006,0.00027381,2]
[327495965,1716125477960,-428.112904,0.00027381,2]
[327495966,1716125477970,-1513.48422,0.00027381,2]
[327495967,1716125477980,-233.77768,0.00027381,2]
[327495968,1716125477990,-756.74211,0.00027381,2]
[327495969,1716125478000,-214.056452,0.00027381,2]
[327495970,1716125478009,-194.814735,0.00027381,2]
[327495971,1716125478019,-756.74211,0.00027381,2]
[327495972,1716125478029,-214.056452,0.00027381,2]
[327495973,1716125478039,-194.814734,0.00027381,2]
[327495974,1716125478049,-281.111041,0.00027381,2]
[327495975,1716125478060,-247.172009,0.00027381,2]
[327495976,1716125478069,-756.742111,0.00027381,2]
[327495977,1716125478078,-194.814734,0.00027381,2]
[327495978,1716125478088,-632.46258,0.00027381,2]
[327495979,1716125478097,-300.0,0.00027397,2]
[327495980,1716125478107,-2000.0,0.00027397,2]
[327495981,1716125478116,-600.0,0.00027397,2]
[327495982,1716125478125,-600.0,0.00027397,4]
[327495983,1716125478134,-300.0,0.00027397,6]
[327495984,1716125478143,-500.0,0.00027397,2]
[327495985,1716125478153,-511.84405712,0.00027397,2]
[327495986,1716125478165,-151.0,0.00027397,7]
[327495987,1716125478174,-151.0,0.00027397,7]
[327495988,1716125478184,-151.0,0.00027397,7]
[327495989,1716125478194,-182.84,0.00027397,7]
[327495990,1716125478207,-215.9,0.00027397,10]
[327495991,1716125478216,-200.0,0.000274,2]
[327495992,1716125478225,-500.0,0.000274,2]
[327495993,1716125478235,-500.0,0.000274,2]
[327495994,1716125478248,-750.0,0.000274,2]
[327495995,1716125478260,-487.0,0.000274,2]
[327495996,1716125478272,-500.0,0.000274,2]
[327495997,1716125478281,-224.0,0.000274,2]
[327495998,1716125478292,-257.8,0.000274,2]
[327495999,1716125478302,-354.0,0.000274,2]
[327496000,1716125478311,-500.0,0.00027412,2]
[327496001,1716125478320,-500.0,0.00027412,2]
[327496002,1716125478330,-500.0,0.00027412,2]
[327496003,1716125478339,-500.0,0.00027412,2]
[327496004,1716125478348,-500.0,0.00027412,2]
[327496005,1716125478358,-500.0,0.00027412,2]
[327496006,1716125478367,-500.0,0.00027412,2]
[327496007,1716125478376,-500.0,0.00027412,2]
[327496008,1716125478385,-500.0,0.00027412,2]
[327496009,1716125478395,-500.0,0.00027412,2]
[327496010,1716125478404,-500.0,0.00027412,2]
[327496011,1716125478413,-500.0,0.00027412,2]
[327496012,1716125478422,-224.95377617,0.00027412,2]
[327496013,1716125478432,-500.0,0.00027412,2]
[327496014,1716125478442,-586.1,0.00027412,2]
[327496015,1716125478452,-500.0,0.00027412,2]
[327496016,1716125478461,-500.0,0.00027412,2]
[327496017,1716125478472,-527.73,0.00027412,2]
[327496018,1716125478482,-500.0,0.00027412,2]
[327496019,1716125478491,-521.61584969,0.00027412,2]
[327496020,1716125478500,-500.0,0.00027412,2]
[327496021,1716125478510,-500.0,0.00027412,2]
[327496022,1716125478519,-500.0,0.00027412,2]
[327496023,1716125478528,-500.0,0.00027412,2]
[327496024,1716125478539,-500.0,0.00027412,2]
[327496025,1716125478549,-500.0,0.00027412,2]
[327496026,1716125478560,-500.0,0.00027412,2]
[327496027,1716125478569,-674.97,0.00027412,2]
[327496028,1716125478578,-500.0,0.00027412,2]
[327496029,1716125478587,-838.37,0.00027412,2]
[327496030,1716125478596,-4449.99,0.00027412,2]
[327496031,1716125478605,-522.1,0.00027412,2]
[327496032,1716125478614,-500.0,0.00027413,2]
[327496033,1716125478624,-500.0,0.00027413,2]
[327496034,1716125478633,-2017.93,0.00027413,2]
[327496035,1716125478643,-500.0,0.00027415,2]
[327496036,1716125478652,-518.22110346,0.00027415,2]
[327496037,1716125478661,-500.0,0.00027415,2]
[327496038,1716125478671,-500.0,0.00027415,2]
[327496039,1716125478680,-500.0,0.00027415,2]
[327496040,1716125478689,-500.0,0.00027415,2]
[327496041,1716125478698,-500.0,0.00027415,2]
[327496042,1716125478708,-500.0,0.00027415,2]
[327496043,1716125478717,-232.0577399,0.00027415,2]
[327496044,1716125478726,-500.0,0.00027415,2]
[327496045,1716125478735,-216.50627843,0.00027415,2]
[327496046,1716125478745,-500.0,0.00027415,2]
[327496047,1716125478754,-500.0,0.00027415,2]
[327496048,1716125478764,-500.0,0.00027415,2]
[327496049,1716125478773,-500.0,0.00027415,2]
[327496050,1716125478782,-500.0,0.00027415,2]
[327496051,1716125478792,-500.0,0.00027415,2]
[327496052,1716125478801,-500.0,0.00027415,2]
[327496053,1716125478811,-299.52,0.00027415,2]
[327496054,1716125478820,-164.35,0.00027415,2]
[327496055,1716125478829,-500.0,0.00027415,2]
[327496056,1716125478838,-500.0,0.00027415,2]
[327496057,1716125478848,-500.0,0.00027415,2]
[327496058,1716125478857,-500.0,0.00027415,2]
[327496059,1716125478866,-500.0,0.00027415,2]
[327496060,1716125478876,-500.0,0.00027415,2]
[327496061,1716125478885,-500.0,0.00027415,2]
[327496062,1716125478896,-500.0,0.00027415,2]
[327496063,1716125478906,-393.82,0.00027415,2]
[327496064,1716125478915,-435.92,0.00027415,2]
[327496065,1716125478924,-500.0,0.00027415,2]
[327496066,1716125478933,-500.0,0.00027415,2]
[327496067,1716125478942,-348.09001236,0.00027415,2]
[327496068,1716125478951,-500.0,0.00027415,2]
[327496069,1716125478960,-329.27266262,0.00027415,2]
[327496070,1716125478969,-500.0,0.00027415,2]
[327496071,1716125478979,-266.53,0.00027415,2]
[327496072,1716125478988,-17815.44131664,0.00027426,2]
[327496073,1716125478997,-2000.0,0.00027452,2]
[327496074,1716125479007,-200.0,0.00027452,2]
[327496075,1716125479016,-657.56,0.00027464,2]
[327496076,1716125479026,-506.18,0.00027464,2]
[327496077,1716125479036,-500.0,0.00027464,2]
[327496078,1716125479045,-500.0,0.00027464,2]
[327496079,1716125479056,-500.0,0.00027464,2]
[327496080,1716125479065,-879.12,0.00027464,2]
[327496081,1716125479074,-671.24,0.00027464,2]
[327496082,1716125479084,-649.47020484,0.00027464,2]
[327496083,1716125479093,-609.43,0.00027464,2]
[327496084,1716125479102,-2500.45,0.00027464,2]
[327496085,1716125479112,-843.99,0.00027464,2]
[327496086,1716125479121,-500.0,0.00027464,2]
[327496087,1716125479131,-500.0,0.00027464,2]
[327496088,1716125479140,-568.61,0.00027464,2]
[327496089,1716125479149,-817.19,0.00027464,2]
[327496090,1716125479159,-500.0,0.00027464,2]
[327496091,1716125479169,-854.39,0.00027464,2]
[327496092,1716125479181,-666.0,0.00027464,2]
[327496093,1716125479190,-637.12,0.00027464,2]
[327496094,1716125479200,-857.61,0.00027464,2]
[327496095,1716125479211,-500.0,0.00027464,2]
[327496096,1716125479220,-518.83,0.00027464,2]
[327496097,1716125479230,-500.0,0.00027464,2]
[327496098,1716125479239,-726.23,0.00027464,2]
[327496099,1716125479251,-762.51,0.00027464,2]
[327496100,1716125479260,-500.0,0.00027464,2]
[327496101,1716125479269,-1281.27,0.00027464,2]
[327496102,1716125479279,-1187.11,0.00027464,2]
[327496103,1716125479288,-820.48,0.00027464,2]
[327496104,1716125479297,-500.0,0.00027464,2]
[327496105,1716125479308,-1052.6,0.00027464,2]
[327496106,1716125479317,-763.43,0.00027464,2]
[327496107,1716125479326,-1150.72,0.00027464,2]
[327496108,1716125479336,-500.0,0.00027464,2]
[327496109,1716125479345,-3667.38,0.00027464,2]
[327496110,1716125479354,-1211.58,0.00027464,2]
[327496111,1716125479364,-986.86,0.00027464,2]
[327496112,1716125479374,-500.0,0.00027464,2]
[327496113,1716125479383,-740.89,0.00027464,2]
[327496114,1716125479392,-533.27,0.00027464,2]
[327496115,1716125479402,-500.0,0.00027464,2]
[327496116,1716125479411,-500.0,0.00027464,2]
[327496117,1716125479420,-975.8,0.00027464,2]
[327496118,1716125479430,-1384.87,0.00027464,2]
[327496119,1716125479439,-184.64144631,0.00027464,2]
[327496120,1716125479449,-1006.42,0.00027464,2]
[327496121,1716125479458,-500.0,0.00027464,2]
[327496122,1716125479467,-2304.66,0.00027464,2]
[327496123,1716125479477,-2722.15,0.00027464,2]
[327496124,1716125479486,-3116.58,0.00027464,2]
[327496125,1716125479496,-500.0,0.00027464,2]
[327496126,1716125479506,-942.59,0.00027464,2]
[327496127,1716125479516,-536.87958664,0.00027464,2]
[327496128,1716125479525,-15816.75,0.00027464,2]
[327496129,1716125479535,-500.0,0.00027464,2]
[327496130,1716125479544,-849.34,0.00027464,2]
[327496131,1716125479554,-500.0,0.00027464,2]
[327496132,1716125479564,-500.0,0.00027464,2]
[327496133,1716125479573,-500.0,0.00027464,2]
[327496134,1716125479583,-500.0,0.00027464,2]
[327496135,1716125479593,-500.0,0.00027464,2]
[327496136,1716125479603,-1608.23,0.00027464,2]
[327496137,1716125479613,-500.0,0.00027464,2]
[327496138,1716125479622,-9478.72,0.00027464,2]
[327496139,1716125479632,-549.52785061,0.00027465,2]
[327496140,1716125479641,-500.0,0.00027465,7]
[327496141,1716125479651,-500.0,0.00027465,2]
[327496142,1716125479770,-500.0,0.00027465,2]
[327496143,1716125479780,-500.0,0.00027465,2]
[327496144,1716125479790,-606.15,0.00027465,2]
[327496145,1716125479800,-500.0,0.00027465,2]
[327496146,1716125479809,-500.0,0.00027465,2]
[327496147,1716125479819,-500.0,0.00027465,2]
[327496148,1716125479828,-291.2854563,0.00027465,2]
[327496149,1716125479838,-500.0,0.00027465,2]
[327496150,1716125479847,-500.0,0.00027465,2]
[327496151,1716125479857,-500.0,0.00027465,2]
[327496152,1716125479867,-815.2,0.00027465,2]
[327496153,1716125479877,-615.48,0.00027465,2]
[327496154,1716125479887,-373.67735008,0.00027465,2]
[327496155,1716125479896,-500.0,0.00027465,2]
[327496156,1716125479906,-725.95,0.00027465,2]
[327496157,1716125479915,-500.0,0.00027465,2]
[327496158,1716125479926,-500.0,0.00027465,2]
[327496159,1716125479936,-150.0,0.00027465,2]
[327496160,1716125479945,-500.0,0.00027465,2]
[327496161,1716125479955,-988.92,0.00027465,2]
[327496162,1716125479965,-500.0,0.00027465,2]
[327496163,1716125479975,-780.74,0.00027465,2]
[327496164,1716125479984,-225.28015062,0.00027465,2]
[327496165,1716125479993,-500.0,0.00027465,2]
[327496166,1716125480003,-500.0,0.00027465,2]
[327496167,1716125480012,-500.0,0.00027465,2]
[327496168,1716125480021,-500.0,0.00027465,2]
[327496169,1716125480031,-500.0,0.00027465,2]
[327496170,1716125480040,-619.66,0.00027465,2]
[327496171,1716125480049,-500.0,0.00027465,2]
[327496172,1716125480061,-500.0,0.00027465,2]
[327496173,1716125480070,-500.0,0.00027465,2]
[327496174,1716125480079,-846.91,0.00027465,2]
[327496175,1716125480089,-982.33,0.00027465,2]
[327496176,1716125480098,-500.0,0.00027465,2]
[327496177,1716125480108,-1644.32,0.00027465,2]
[327496178,1716125480117,-1782.9,0.00027465,2]
[327496179,1716125480127,-500.0,0.00027465,2]
[327496180,1716125480136,-700.7,0.00027465,2]
[327496181,1716125480146,-1923.11,0.00027465,2]
[327496182,1716125480155,-1095.98,0.00027465,2]
[327496183,1716125480165,-1383.57,0.00027465,2]
[327496184,1716125480179,-1151.71,0.00027465,2]
[327496185,1716125480188,-500.0,0.00027465,2]
[327496186,1716125480198,-1219.6,0.00027465,2]
[327496187,1716125480209,-848.32,0.00027465,2]
[327496188,1716125480219,-500.0,0.00027465,2]
[327496189,1716125480228,-777.11,0.00027465,2]
[327496190,1716125480238,-500.0,0.00027465,2]
[327496191,1716125480249,-1055.0,0.00027465,2]
[327496192,1716125480258,-512.59,0.00027465,2]
[327496193,1716125480267,-500.0,0.00027465,2]
[327496194,1716125480277,-541.07,0.00027465,2]
[327496195,1716125480286,-828.51,0.00027465,2]
[327496196,1716125480295,-500.0,0.00027465,2]
[327496197,1716125480305,-989.78,0.00027465,2]
[327496198,1716125480315,-188.57484232,0.00027465,2]
[327496199,1716125480323,-500.0,0.00027465,2]
[327496200,1716125480332,-500.0,0.00027465,2]
[327496201,1716125480342,-1162.85,0.00027465,2]
[327496202,1716125480351,-540.7,0.00027465,2]
[327496203,1716125480360,-500.0,0.00027465,2]
[327496204,1716125480369,-182.85,0.00027465,2]
[327496205,1716125480379,-3682.75,0.00027465,2]
[327496206,1716125480388,-500.0,0.00027465,2]
[327496207,1716125480397,-1892.05,0.00027465,2]
[327496208,1716125480407,-500.0,0.00027465,2]
[327496209,1716125480416,-1015.08,0.00027465,2]
[327496210,1716125480426,-878.61,0.00027465,2]
[327496211,1716125480435,-871.12,0.00027465,2]
[327496212,1716125480445,-500.0,0.00027465,2]
[327496213,1716125480454,-1467.74,0.00027465,2]
[327496214,1716125480464,-500.0,0.00027465,2]
[327496215,1716125480474,-1893.57,0.00027465,2]
[327496216,1716125480483,-533.14,0.00027465,2]
[327496217,1716125480493,-500.0,0.00027465,2]
[327496218,1716125480502,-500.0,0.00027465,2]
[327496219,1716125480512,-656.36,0.00027465,2]
[327496220,1716125480521,-615.22,0.00027465,2]
[327496221,1716125480531,-810.74,0.00027465,2]
[327496222,1716125480540,-997.13,0.00027465,2]
[327496223,1716125480550,-837.85,0.00027465,2]
[327496224,1716125480562,-674.79,0.00027465,2]
[327496225,1716125480571,-2150.8,0.00027465,2]
[327496226,1716125480581,-500.0,0.00027465,2]
[327496227,1716125480591,-827.03,0.00027465,2]
[327496228,1716125480600,-2747.6,0.00027465,2]
[327496229,1716125480609,-1069.79,0.00027465,2]
[327496230,1716125480619,-4457.98,0.00027465,2]
[327496231,1716125480628,-925.95,0.00027465,2]
[327496232,1716125480638,-500.0,0.00027465,2]
[327496233,1716125480647,-896.89,0.00027465,2]
[327496234,1716125480657,-997.04,0.00027465,2]
[327496235,1716125480669,-6546.3,0.00027465,2]
[327496236,1716125480679,-162.5139665,0.00027465,2]
[327496237,1716125480693,-744.57,0.00027465,2]
[327496238,1716125480703,-1036.81,0.00027465,2]
[327496239,1716125480712,-500.0,0.00027465,2]
[327496240,1716125480722,-156.01240037,0.00027465,2]
[327496241,1716125480731,-500.0,0.00027465,2]
[327496242,1716125480741,-2745.43,0.00027465,2]
[327496243,1716125480751,-500.0,0.00027465,2]
[327496244,1716125480760,-1015.07,0.00027465,2]
[327496245,1716125480769,-521.3,0.00027465,2]
[327496246,1716125480779,-156.791667,0.00027496,2]
[327496247,1716125480788,-159.110877,0.00027496,2]
[327496248,1716125480797,-278.336359,0.00027496,2]
[327496249,1716125480808,-3218.702548,0.00027496,2]
[327496250,1716125480817,-168.625639,0.00027496,2]
[327496251,1716125480826,-203.397563,0.00027496,2]
[327496252,1716125480836,-11620.285697,0.00027496,2]
[327496253,1716125480845,-3113.727306,0.00027496,2]
[327496254,1716125480854,-159.697502,0.00027496,2]
[327496255,1716125480864,-187.215959,0.00027496,2]
[327496256,1716125480873,-155.697586,0.00027496,2]
[327496257,1716125480882,-165.577784,0.00027496,2]
[327496258,1716125480891,-165.215498,0.00027496,2]
[327496259,1716125480901,-164.95886,0.00027496,2]
[327496260,1716125480910,-165.215495,0.00027496,2]
[327496261,1716125480920,-204.69719,0.00027496,2]
[327496262,1716125480929,-9517.00699,0.00027496,2]
[327496263,1716125480938,-4113.536787,0.00027496,2]
[327496264,1716125480947,-154.637456,0.00027496,2]
[327496265,1716125480957,-320.270047,0.00027496,2]
[327496266,1716125480966,-3000.0,0.000275,2]
[327496267,1716125480975,-152.0,0.00027514,3]
[327496268,1716125480984,-300.0,0.00027534,2]
[327496269,1716125480993,-17815.44131664,0.00027544,2]
[327496270,1716125481004,-300.311,0.00027578,2]
[327496271,1716125481014,-2100.0,0.00027578,2]
[327496272,1716125481023,-3000.0,0.000276,2]
[327496273,1716125481032,-185.849051,0.00027604,2]
[327496274,1716125481042,-155.64,0.00027641,2]
[327496275,1716125481052,-17815.44131664,0.00027663,2]
[327496276,1716125481065,-300.0,0.00027671,2]
[327496277,1716125481074,-500.0,0.00027686,2]
[327496278,1716125481083,-500.0,0.00027686,2]
[327496279,1716125481092,-500.0,0.00027686,2]
[327496280,1716125481102,-500.0,0.00027686,2]
[327496281,1716125481111,-500.0,0.00027686,2]
[327496282,1716125481120,-500.0,0.00027686,2]
[327496283,1716125481129,-500.0,0.00027686,2]
[327496284,1716125481139,-523.80214664,0.00027686,2]
[327496285,1716125481148,-500.0,0.00027686,2]
[327496286,1716125481157,-500.0,0.00027686,2]
[327496287,1716125481167,-556.02340824,0.00027686,2]
[327496288,1716125481181,-500.0,0.00027686,2]
[327496289,1716125481191,-500.0,0.00027686,2]
[327496290,1716125481200,-500.0,0.00027686,2]
[327496291,1716125481212,-172.09178369,0.00027686,2]
[327496292,1716125481221,-500.0,0.00027686,2]
[327496293,1716125481230,-500.0,0.00027686,2]
[327496294,1716125481240,-500.0,0.00027686,2]
[327496295,1716125481251,-500.0,0.00027686,2]
[327496296,1716125481261,-500.0,0.00027686,2]
[327496297,1716125481271,-500.0,0.00027686,2]
[327496298,1716125481281,-500.0,0.00027686,2]
[327496299,1716125481290,-500.0,0.00027686,2]
[327496300,1716125481299,-674.97,0.00027686,2]
[327496301,1716125481311,-500.0,0.00027686,2]
[327496302,1716125481320,-838.37,0.00027686,2]
[327496303,1716125481329,-4449.99,0.00027686,2]
[327496304,1716125481338,-522.1,0.00027686,2]
[327496305,1716125481347,-500.0,0.00027687,2]
[327496306,1716125481356,-500.0,0.00027687,2]
[327496307,1716125481366,-2017.93,0.00027687,2]
[327496308,1716125481375,-500.0,0.00027689,2]
[327496309,1716125481385,-500.0,0.00027689,2]
[327496310,1716125481394,-500.0,0.00027689,2]
[327496311,1716125481404,-161.16878137,0.00027689,2]
[327496312,1716125481415,-337.03702473,0.00027689,2]
[327496313,1716125481425,-291.97305026,0.00027689,2]
[327496314,1716125481435,-266.66930528,0.00027689,2]
[327496315,1716125481444,-500.0,0.00027689,2]
[327496316,1716125481454,-500.0,0.00027689,2]
[327496317,1716125481463,-182.09300113,0.00027689,2]
[327496318,1716125481472,-500.0,0.00027689,2]
[327496319,1716125481482,-577.57956419,0.00027689,2]
[327496320,1716125481492,-277.13980376,0.00027689,2]
[327496321,1716125481501,-500.0,0.00027689,2]
[327496322,1716125481511,-638.03431981,0.00027689,2]
[327496323,1716125481520,-500.0,0.00027689,2]
[327496324,1716125481530,-500.0,0.00027689,2]
[327496325,1716125481541,-500.0,0.00027689,2]
[327496326,1716125481550,-500.0,0.00027689,2]
[327496327,1716125481561,-500.0,0.00027689,2]
[327496328,1716125481674,-157.7,0.00027689,2]
[327496329,1716125481684,-500.0,0.00027689,2]
[327496330,1716125481693,-500.0,0.00027689,2]
[327496331,1716125481703,-500.0,0.00027689,2]
[327496332,1716125481713,-500.0,0.00027689,2]
[327496333,1716125481722,-1805.728918,0.00027715,2]
[327496334,1716125481731,-428.112904,0.00027715,2]
[327496335,1716125481740,-1513.48422,0.00027715,2]
[327496336,1716125481749,-233.77768,0.00027715,2]
[327496337,1716125481758,-756.74211,0.00027715,2]
[327496338,1716125481767,-214.056452,0.00027715,2]
[327496339,1716125481776,-756.74211,0.00027715,2]
[327496340,1716125481785,-214.056452,0.00027715,2]
[327496341,1716125481795,-281.111041,0.00027715,2]
[327496342,1716125481804,-247.172009,0.00027715,2]
[327496343,1716125481814,-756.742111,0.00027715,2]
[327496344,1716125481823,-632.46258,0.00027715,2]